bitfinex/quotes_ETHUSD_20260228
["timestamp","ask_amount","ask_price","bid_price","bid_amount"]
[1772279754529,4.83560851,1867.6,1867.0,4.79189178]
[1772279754728,4.83560851,1867.6,1867.0,3.452864]
[1772279754729,3.49695128,1867.5,1867.0,3.452864]
[1772279755028,3.49695128,1867.5,1867.0,4.79190458]
[1772279755333,3.49695128,1867.5,1867.0,3.452864]
[1772279756814,3.49695128,1867.5,1867.1,1.33897488]
[1772279757128,5.35391149,1867.8,1867.1,1.33897488]
[1772279757129,3.49695128,1867.8,1867.1,1.33897488]
[1772279757431,3.49695128,1867.8,1867.2,3.452864]
[1772279757834,3.49695128,1867.8,1867.0,1.33903151]
[1772279757835,3.49695128,1867.7,1867.0,1.33903151]
[1772279758008,3.49695128,1867.7,1867.1,3.452864]
[1772279758831,3.49695128,1867.6,1867.1,4.79178761]
[1772279759225,3.49695128,1867.6,1866.9,0.66195558]
[1772279759226,3.49695128,1867.6,1866.9,0.0011]
[1772279759426,3.49695128,1867.0,1866.8,0.0011]
[1772279759627,1.33856343,1867.7,1866.6,3.452864]
[1772279759628,3.49695128,1866.9,1866.6,3.452864]
[1772279760141,1.935,1867.4,1865.9,2.00307781]
[1772279760142,3.49695128,1866.6,1865.9,2.00307781]
[1772279760434,0.47190446,1867.6,1865.9,2.00307781]
[1772279760435,3.49695128,1866.9,1866.1,0.66329874]
[1772279760937,3.49695128,1867.3,1866.4,1.33947706]
[1772279761251,3.49695128,1867.6,1866.5,0.66329874]
[1772279761447,3.49695128,1867.6,1866.6,3.43270106]
[1772279761937,3.49695128,1867.6,1866.7,3.452864]
[1772279762130,3.49695128,1867.5,1866.7,3.452864]
[1772279763236,3.49695128,1867.5,1866.8,1.33919005]
[1772279763440,3.49695128,1867.5,1866.7,4.7920722]
[1772279763739,3.49695128,1867.0,1866.2,1.33962061]
[1772279763943,3.7291991,1867.1,1866.2,3.452864]
[1772279763944,3.49695128,1866.8,1866.2,3.452864]
[1772279764318,3.7291991,1866.9,1866.3,3.452864]
[1772279764319,3.49695128,1866.9,1866.3,3.452864]
[1772279764518,3.49695128,1866.9,1865.9,3.43270106]
[1772279764519,3.49695128,1866.9,1866.0,3.452864]
[1772279765021,3.49695128,1866.8,1866.0,3.452864]
[1772279765354,1.307,1867.1,1866.0,4.79258143]
[1772279765641,3.49695128,1867.0,1866.0,8.22528249]
[1772279765848,7.876317,1867.8,1866.0,8.22528249]
[1772279765849,3.49695128,1867.5,1866.3,3.43270106]
[1772279766215,3.7291991,1867.2,1866.4,3.452864]
[1772279766418,3.49695128,1867.1,1866.4,3.452864]
[1772279767318,4.83598249,1867.1,1866.5,1.3394053]
[1772279767519,3.49695128,1867.0,1866.5,1.3394053]
[1772279767832,3.49695128,1867.0,1866.6,3.452864]
[1772279768428,2.76,1867.6,1866.6,3.452864]
[1772279768429,3.49695128,1867.3,1866.6,3.452864]
[1772279769286,3.49695128,1867.3,1866.7,1.33926179]
[1772279769732,3.49695128,1867.3,1866.8,3.452864]
[1772279770247,3.49695128,1867.5,1866.8,3.452864]
[1772279771031,3.70415029,1867.8,1866.8,7.04659076]
[1772279771248,5.04272382,1867.7,1866.9,1.33911832]
[1772279771425,0.001,1867.5,1866.9,1.33911832]
[1772279771626,0.001,1867.5,1867.0,3.452864]
[1772279774566,0.001,1867.5,1867.1,1.33897488]
[1772279775453,5.58715029,1867.8,1867.5,0.61519229]
[1772279778140,3.70415029,1867.7,1866.9,1.33911832]
[1772279778341,3.70415029,1867.7,1866.9,8.38460908]
[1772279778871,3.70415029,1867.7,1867.0,3.59262676]
[1772279779087,3.70415029,1867.7,1866.9,3.452864]
[1772279779264,3.70415029,1867.5,1866.9,4.79194463]
[1772279782644,6.92564066,1867.8,1867.0,3.59262676]
[1772279782856,3.70415029,1867.7,1867.1,1.33897488]
[1772279783476,3.70415029,1867.7,1867.2,3.452864]
[1772279783880,3.70515029,1867.7,1867.2,3.452864]
[1772279784587,0.001,1867.7,1867.2,3.452864]
[1772279784957,0.001,1867.7,1867.3,4.93145822]
[1772279785274,2.746,1868.2,1867.5,3.59262676]
[1772279785697,2.746,1868.2,1867.6,7.04549076]
[1772279785848,0.001,1868.4,1867.7,3.59262676]
[1772279786771,0.001,1868.4,1867.8,0.69384882]
[1772279786945,0.001,1868.4,1867.9,1.33840141]
[1772279787573,0.001,1868.4,1867.8,6.04745447]
[1772279787574,3.70415029,1868.2,1868.0,3.452864]
[1772279787776,3.70415029,1868.2,1867.8,0.69384882]
[1772279787981,3.70415029,1868.2,1867.9,3.452864]
[1772279788692,3.70415029,1868.2,1867.8,0.69384882]
[1772279788891,5.04240841,1868.1,1867.8,4.14671282]
[1772279789187,3.70415029,1868.1,1867.8,4.14671282]
[1772279790160,3.70415029,1868.3,1867.8,4.14671282]
[1772279791068,5.04233677,1868.2,1867.8,4.14671282]
[1772279791271,3.70415029,1868.1,1867.8,4.14671282]
[1772279793998,3.70415029,1868.1,1867.8,5.48517945]
[1772279795564,3.70415029,1868.1,1867.8,4.14671282]
[1772279795977,3.70415029,1868.1,1867.8,5.485178]
[1772279796574,0.001,1868.0,1867.8,5.485178]
[1772279797997,0.001,1868.0,1867.8,4.14671282]
[1772279798571,0.001,1868.0,1867.8,5.48517947]
[1772279802378,0.001,1868.0,1867.8,5.48518208]
[1772279802585,0.001,1868.0,1867.8,4.14671282]
[1772279803096,0.001,1868.0,1867.8,5.48518544]
[1772279804073,0.001,1868.0,1867.8,4.14671282]
[1772279804279,0.001,1868.0,1867.8,5.48517521]
[1772279804699,0.001,1868.0,1867.8,2.03231121]
[1772279805613,0.001,1868.0,1867.9,3.452864]
[1772279806407,0.001,1868.0,1867.8,5.48372888]
[1772279806612,0.001,1868.0,1867.9,3.452864]
[1772279809610,6.21050392,1868.4,1868.0,3.45141767]
[1772279809788,6.21050392,1868.4,1868.0,6.90428167]
[1772279810291,7.54855713,1868.4,1868.0,6.90428167]
[1772279810984,7.54855713,1868.4,1868.0,7.71871267]
[1772279811184,7.54855713,1868.4,1868.0,9.05704101]
[1772279811386,7.54855713,1868.4,1868.0,7.71871267]
[1772279812313,3.46750392,1868.2,1868.0,4.267295]
[1772279813320,3.46750392,1868.2,1868.0,0.5221792]
[1772279815220,4.80569197,1868.2,1868.0,0.5221792]
[1772279816839,3.46750392,1868.1,1868.0,0.5221792]
[1772279820723,3.46750392,1868.1,1867.6,5.35541689]
[1772279820724,3.73281824,1868.0,1867.6,0.0011]
[1772279821030,3.73281824,1868.0,1867.5,0.0011]
[1772279821031,3.73281824,1867.8,1867.5,0.0011]
[1772279821408,3.73281824,1867.7,1867.0,0.0011]
[1772279821636,3.73281824,1867.4,1867.0,0.0011]
[1772279821878,3.73281824,1867.3,1867.0,0.69714882]
[1772279822050,3.73281824,1867.3,1867.0,2.03619348]
[1772279823440,3.73281824,1867.3,1867.0,2.03619508]
[1772279823609,2.738,1867.4,1867.0,5.41937408]
[1772279824318,7.80958119,1867.4,1867.0,4.08032782]
[1772279824707,3.73281824,1867.3,1867.0,0.69714882]
[1772279827212,3.73281824,1867.2,1867.0,0.69714882]
[1772279827644,3.73281824,1867.2,1866.9,0.0011]
[1772279828559,3.73281824,1867.2,1866.8,0.0011]
[1772279829254,3.73281824,1867.0,1866.7,0.0011]
[1772279829417,6.47381824,1866.9,1866.7,0.0011]
[1772279830843,3.75245854,1866.8,1866.7,0.0011]
[1772279831641,3.75245854,1866.7,1866.5,0.0011]
[1772279833469,3.75245854,1866.7,1866.0,1.86709579]
[1772279833470,3.75245854,1866.6,1866.0,1.86709579]
[1772279833668,3.75245854,1866.6,1866.0,6.82764557]
[1772279835049,3.75245854,1866.6,1866.5,0.0011]
[1772279837869,3.75245854,1866.6,1866.3,0.0011]
[1772279838241,8.97257366,1866.8,1866.3,0.0011]
[1772279838448,3.75245854,1866.7,1866.3,0.0011]
[1772279839675,3.75245854,1866.7,1865.9,4.96062915]
[1772279839970,3.75245854,1866.5,1865.9,4.96062915]
[1772279840149,3.75245854,1866.4,1865.9,1.33978613]
[1772279840356,2.745,1866.5,1866.0,3.62084302]
[1772279840981,6.49745854,1866.5,1866.0,3.62084302]
[1772279842059,6.49745854,1866.5,1866.1,1.3396924]
[1772279842257,3.75245854,1866.4,1866.0,3.62084302]
[1772279842462,3.75245854,1866.4,1866.0,4.96060691]
[1772279842660,3.75245854,1866.4,1866.0,3.62084302]
[1772279842884,3.75245854,1866.4,1866.0,4.96058969]
[1772279843281,3.75245854,1866.4,1866.0,3.62084302]
[1772279843449,3.75245854,1866.4,1865.9,1.33980839]
[1772279843654,3.75245854,1866.4,1865.8,3.62084302]
[1772279844075,3.75245854,1866.2,1865.7,0.1502227]
[1772279844881,6.49745854,1866.1,1865.7,3.77106572]
[1772279845282,6.49745854,1866.1,1865.7,0.1502227]
[1772279845486,3.75245854,1866.0,1865.7,0.1502227]
[1772279845783,2.745,1866.1,1865.8,3.62084302]
[1772279846779,6.49745854,1866.1,1865.7,0.1502227]
[1772279846979,2.745,1866.1,1865.8,3.62194302]
[1772279847281,6.49745854,1866.1,1865.8,0.0011]
[1772279848357,2.745,1866.1,1865.8,3.62194302]
[1772279849783,3.75245854,1866.0,1865.8,0.0011]
[1772279850166,3.75245854,1866.0,1864.8,3.62084302]
[1772279850167,3.75245854,1865.8,1864.8,3.62084302]
[1772279850485,2.751,1865.7,1864.8,3.62084302]
[1772279850703,3.75245854,1865.6,1864.8,3.62084302]
[1772279852193,4.09102074,1865.7,1865.0,3.62084302]
[1772279852699,8.97257366,1865.4,1864.9,3.62084302]
[1772279853180,6.50545854,1865.3,1864.7,4.96149934]
[1772279853384,6.50545854,1865.3,1864.8,3.62084302]
[1772279853681,2.753,1865.3,1864.8,3.62084302]
[1772279854263,6.50545854,1865.3,1864.8,4.96141944]
[1772279854587,3.75245854,1865.2,1864.8,1.34057642]
[1772279854805,3.75245854,1865.2,1864.5,5.36326327]
[1772279855021,3.75245854,1864.6,1864.2,4.82425798]
[1772279855157,3.75245854,1864.4,1863.7,4.82425798]
[1772279855483,3.75245854,1864.4,1863.3,11.46448161]
[1772279855783,3.75245854,1864.4,1863.5,3.62084302]
[1772279855982,3.75245854,1864.6,1863.7,3.62084302]
[1772279856187,3.75245854,1864.6,1863.8,3.62084302]
[1772279856384,3.75245854,1864.6,1863.9,1.34127367]
[1772279857397,3.75245854,1864.6,1864.0,8.445101]
[1772279857615,3.75245854,1865.0,1864.1,3.62084302]
[1772279857893,5.09294623,1865.0,1864.1,3.62084302]
[1772279858101,3.75245854,1865.0,1864.2,8.445101]
[1772279858272,6.51645854,1865.2,1864.3,3.62084302]
[1772279858470,3.75245854,1865.2,1864.5,3.62084302]
[1772279859704,3.75245854,1864.7,1863.7,4.96226063]
[1772279859882,3.75245854,1864.7,1863.8,3.62084302]
[1772279860586,3.64178505,1864.6,1863.9,6.16553165]
[1772279862375,4.98257769,1864.6,1863.9,6.16553165]
[1772279862574,1.34073314,1864.7,1863.9,9.85476262]
[1772279862781,3.5672199,1864.6,1863.9,9.85476262]
[1772279864413,4.90803693,1864.6,1863.9,6.16553165]
[1772279864699,3.5672199,1864.5,1863.9,6.16553165]
[1772279866304,3.5672199,1864.5,1863.9,1.34127367]
[1772279867007,3.5672199,1864.5,1863.7,5.36563539]
[1772279867194,3.5672199,1864.5,1863.8,4.82425798]
[1772279867195,3.5672199,1864.4,1863.8,4.82425798]
[1772279868204,3.5672199,1864.4,1863.8,8.51348895]
[1772279868502,2.76,1864.5,1863.9,3.68923097]
[1772279869111,6.3272199,1864.5,1864.0,1.34120171]
[1772279869296,3.74404232,1864.4,1864.0,4.82425798]
[1772279869502,3.5672199,1864.1,1863.7,0.003]
[1772279869809,3.5672199,1864.1,1863.7,1.34441722]
[1772279870003,3.5672199,1864.1,1863.7,0.003]
[1772279871218,4.90835932,1864.1,1863.7,0.003]
[1772279871418,3.5672199,1864.0,1863.7,0.003]
[1772279871618,4.9081868,1864.4,1863.7,3.69223097]
[1772279871799,3.5672199,1864.3,1863.7,3.69223097]
[1772279872214,3.5672199,1864.3,1863.8,0.0011]
[1772279873106,3.5672199,1864.3,1863.8,1.34244563]
[1772279874713,4.90821046,1864.3,1863.8,1.34244563]
[1772279874915,3.5672199,1864.3,1863.8,0.0011]
[1772279875116,4.90856553,1863.8,1863.2,5.03100712]
[1772279875517,4.09932255,1863.9,1863.3,3.68923097]
[1772279875815,5.08521783,1864.1,1863.3,3.68923097]
[1772279876120,1.34108496,1864.2,1863.3,3.68923097]
[1772279876613,4.90823085,1864.3,1863.4,3.68923097]
[1772279877114,4.90821322,1864.3,1863.5,1.34156157]
[1772279877311,3.5672199,1864.3,1863.6,3.68923097]
[1772279877517,4.90821098,1864.3,1863.6,3.68923097]
[1772279877897,8.6522533,1864.3,1863.6,3.68923097]
[1772279878215,3.5672199,1864.2,1863.5,1.34156157]
[1772279879818,3.5672199,1864.0,1863.3,1.34170557]
[1772279880193,4.90833417,1864.2,1863.4,3.68923097]
[1772279880518,3.5672199,1864.2,1863.4,3.68923097]
[1772279881118,4.90829025,1864.2,1863.4,3.68923097]
[1772279881430,3.5672199,1864.1,1863.3,5.03093654]
[1772279881799,3.5672199,1864.3,1863.5,5.03079254]
[1772279884126,3.5672199,1864.3,1863.6,3.69033097]
[1772279886133,3.5672199,1864.3,1863.7,1.34141761]
[1772279886293,3.5672199,1864.3,1863.7,5.03064858]
[1772279888029,0.001,1864.4,1863.8,3.68923097]
[1772279888230,0.001,1864.4,1863.9,5.03050464]
[1772279888925,0.001,1864.4,1864.0,3.68923097]
[1772279889833,0.36402973,1864.7,1864.1,3.68923097]
[1772279890206,0.36402973,1864.7,1864.2,5.03028879]
[1772279891327,3.5672199,1864.8,1864.2,5.03028879]
[1772279891497,3.73774675,1865.0,1864.2,5.03028879]
[1772279891902,3.73774675,1865.0,1864.3,3.57974275]
[1772279892316,3.73774675,1865.0,1864.4,1.34091396]
[1772279893532,3.73774675,1865.4,1864.6,3.57974275]
[1772279893912,0.001,1865.5,1864.8,3.57974275]
[1772279894323,0.001,1865.5,1865.0,3.57974275]
[1772279894638,3.73874675,1865.5,1864.9,1.34055445]
[1772279895228,3.73874675,1865.5,1864.9,4.9202972]
[1772279896018,3.73874675,1865.5,1864.6,5.36294986]
[1772279896339,3.73774675,1865.1,1864.4,1.34091396]
[1772279896553,0.001,1864.9,1864.4,1.34091396]
[1772279896712,0.001,1864.9,1864.5,3.57974275]
[1772279897030,3.73774675,1865.3,1864.6,3.57974275]
[1772279897334,3.73774675,1865.2,1864.5,2.474]
[1772279898414,3.73774675,1865.2,1864.6,1.34077013]
[1772279898844,5.07809705,1865.2,1864.6,1.34077013]
[1772279899043,3.73774675,1865.1,1864.6,1.34077013]
[1772279900614,1.34036747,1865.2,1864.4,1.34091396]
[1772279900615,3.73774675,1865.0,1864.4,1.34091396]
[1772279901034,3.73774675,1865.0,1864.2,8.94386044]
[1772279902539,5.0783012,1864.9,1864.2,8.94386044]
[1772279902740,3.73774675,1864.9,1864.2,8.94386044]
[1772279903039,3.73774675,1864.9,1863.9,3.57974275]
[1772279903744,3.73774675,1864.9,1863.9,6.05574275]
[1772279903925,3.73774675,1864.7,1863.9,3.57974275]
[1772279904747,3.73774675,1864.7,1864.0,4.92094446]
[1772279905943,3.73774675,1864.7,1864.1,3.57974275]
[1772279906248,3.73774675,1864.7,1863.3,5.36920686]
[1772279906249,3.73774675,1864.1,1863.3,5.36920686]
[1772279906451,3.73774675,1863.8,1863.1,6.34294756]
[1772279906745,3.73774675,1863.8,1863.3,1.34170557]
[1772279907047,3.73774675,1863.7,1863.2,5.36920686]
[1772279907955,3.73774675,1863.7,1863.1,0.0011]
[1772279908152,3.73774675,1863.7,1863.1,5.37030686]
[1772279908535,3.73774675,1863.5,1863.1,5.37030686]
[1772279910039,3.73774675,1863.3,1863.1,0.0011]
[1772279911065,6.47974675,1863.6,1863.1,5.37030686]
[1772279911586,3.73774675,1863.5,1863.1,5.37030686]
[1772279911741,3.73774675,1863.8,1863.1,8.95004961]
[1772279911931,4.02012461,1863.9,1863.1,8.95004961]
[1772279911932,5.07905169,1863.9,1863.2,5.36920686]
[1772279912359,5.07884714,1864.2,1863.3,3.57974275]
[1772279912558,3.73774675,1864.2,1863.4,5.36920686]
[1772279912761,3.73774675,1864.2,1863.5,1.34156157]
[1772279914041,5.0788495,1864.2,1863.5,1.34156157]
[1772279917238,5.0788495,1864.2,1863.5,3.81856157]
[1772279917464,3.73774675,1864.2,1863.5,3.81856157]
[1772279917867,3.73774675,1864.2,1863.5,7.39830432]
[1772279918169,3.73774675,1864.2,1863.6,5.36920686]
[1772279918365,5.07870488,1864.4,1863.7,3.57974275]
[1772279918753,5.0788404,1864.2,1863.8,5.36920686]
[1772279918951,5.0788404,1864.2,1863.5,3.81856157]
[1772279920872,0.001,1864.0,1863.5,3.81856157]
[1772279922347,0.001,1864.0,1863.5,3.71856157]
[1772279922667,0.001,1864.0,1863.6,2.477]
[1772279923172,0.001,1864.0,1863.6,6.24505362]
[1772279923379,0.001,1864.0,1863.7,9.13726048]
[1772279924455,0.001,1864.0,1863.8,1.34134563]
[1772279924659,0.001,1864.0,1863.8,0.0033]
[1772279924864,0.001,1864.0,1863.8,2.4803]
[1772279925473,0.001,1864.0,1863.8,0.0033]
[1772279925673,0.001,1864.0,1863.9,2.478]
[1772279927447,0.001,1864.0,1863.9,2.378]
[1772279927879,0.001,1864.0,1863.9,3.71927367]
[1772279928071,0.001,1864.0,1863.8,2.479]
[1772279928270,0.001,1864.0,1863.8,7.84820686]
[1772279929882,0.001,1864.0,1863.8,9.18948199]
[1772279930179,0.001,1864.0,1863.9,2.482]
[1772279931880,0.001,1864.0,1863.9,3.82327367]
[1772279932763,0.001,1864.0,1863.9,2.482]
[1772279934085,0.001,1864.0,1863.9,3.82437367]
[1772279934464,3.74119337,1864.4,1863.9,3.82437367]
[1772279934659,3.74119337,1864.3,1863.9,3.82437367]
[1772279934859,3.74119337,1864.3,1863.9,2.4831]
[1772279935272,3.74119337,1864.3,1863.9,3.82436724]
[1772279935585,5.24236838,1864.6,1864.0,5.36920686]
[1772279935586,3.74119337,1864.6,1864.0,5.36920686]
[1772279935779,3.74119337,1864.6,1864.1,2.488]
[1772279935974,3.74119337,1864.5,1864.2,2.488]
[1772279936866,3.74119337,1864.5,1864.2,7.85720686]
[1772279937182,3.74119337,1864.5,1864.3,2.488]
[1772279938567,5.08210733,1864.4,1864.3,2.488]
[1772279938965,3.74119337,1864.3,1864.1,2.487]
[1772279940695,3.74119337,1864.2,1863.9,0.0011]
[1772279941191,3.74119337,1864.2,1863.8,2.487]
[1772279941485,3.74119337,1864.2,1863.8,7.79620686]
[1772279942681,5.0823066,1864.2,1863.8,7.79620686]
[1772279943087,3.74119337,1864.1,1863.8,7.79620686]
[1772279944885,5.08224092,1864.3,1863.8,12.9056017]
[1772279945080,5.08224092,1864.3,1863.8,9.13754808]
[1772279945387,5.08224092,1864.3,1863.8,12.90560007]
[1772279945691,1.34104755,1864.3,1863.9,3.76805362]
[1772279946064,5.08224092,1864.3,1863.8,11.56426048]
[1772279946263,5.08224092,1864.3,1863.8,12.90560046]
[1772279946590,1.34084204,1864.5,1863.9,3.76805362]
[1772279946791,5.08199609,1864.6,1864.0,10.4151223]
[1772279946979,5.08199609,1864.6,1864.1,2.488]
[1772279947301,3.74119337,1864.5,1864.2,2.489]
[1772279947501,3.74119337,1864.5,1864.0,5.30920686]
[1772279947872,3.74119337,1864.5,1864.0,7.80120686]
[1772279948300,3.74119337,1864.2,1863.8,0.0011]
[1772279948472,3.74119337,1864.2,1863.8,2.4951]
[1772279948987,5.08232313,1864.1,1863.8,2.4951]
[1772279949362,3.74119337,1864.1,1863.8,2.4951]
[1772279950005,1.34111415,1864.2,1863.8,2.4951]
[1772279950374,1.34111415,1864.2,1863.8,6.26315362]
[1772279950798,5.08223761,1864.3,1863.8,7.60446857]
[1772279951296,5.08223761,1864.3,1863.8,6.26315362]
[1772279952093,5.08223761,1864.3,1863.8,7.60447923]
[1772279952998,5.08223761,1864.3,1863.9,2.493]
[1772279954291,5.36313753,1864.6,1864.0,3.91528739]
[1772279954292,3.77858275,1864.6,1864.0,3.91528739]
[1772279955207,5.11942479,1864.5,1864.0,5.25644362]
[1772279956010,3.77858275,1864.5,1863.9,1.3412234]
[1772279956176,3.77858275,1864.5,1864.1,2.493]
[1772279957301,3.77858275,1864.3,1864.1,2.493]
[1772279957489,3.77858275,1864.3,1863.8,5.25767947]
[1772279957677,3.77858275,1864.3,1863.9,2.491]
[1772279959997,5.11957517,1864.3,1863.9,2.4921]
[1772279963716,3.77858275,1864.2,1863.9,2.4921]
[1772279963879,1.34099242,1864.3,1863.9,6.40738739]
[1772279964081,1.34198218,1864.4,1864.0,3.91528739]
[1772279964982,3.77958275,1864.4,1864.0,3.91528739]
[1772279965317,3.77958275,1864.4,1863.9,2.4921]
[1772279966006,0.001,1864.4,1864.0,3.91528739]
[1772279967200,0.001,1864.4,1864.1,3.91528739]
[1772279968402,1.34078001,1864.6,1864.2,3.91528739]
[1772279968585,5.11934705,1864.7,1864.3,6.40528739]
[1772279969120,3.77858275,1864.7,1864.3,6.40528739]
[1772279969325,1.34168233,1864.8,1864.4,3.91528739]
[1772279970919,5.12026508,1864.8,1864.4,3.91528739]
[1772279971108,0.001,1864.8,1864.4,3.91528739]
[1772279972324,0.001,1864.8,1864.5,3.91528739]
[1772279973614,0.001,1864.8,1864.6,5.25605752]
[1772279973928,0.001,1864.8,1864.7,2.491]
[1772279977904,3.77858275,1865.1,1864.8,3.91528739]
[1772279978110,3.77858275,1865.1,1864.6,1.3407185]
[1772279978111,3.77858275,1865.0,1864.9,2.493]
[1772279979339,3.77858275,1865.0,1864.4,3.91528739]
[1772279979508,3.77858275,1865.0,1864.5,6.40828739]
[1772279979704,1.34055445,1864.9,1864.5,6.40828739]
[1772279980026,5.1191372,1864.9,1864.5,6.40828739]
[1772279981136,5.1191372,1864.9,1864.5,3.91528739]
[1772279981327,5.1191372,1864.9,1864.6,2.492]
[1772279982034,3.75354601,1864.8,1864.7,2.491]
[1772279982233,3.75354601,1864.8,1864.5,2.491]
[1772279983540,3.75354601,1864.8,1864.4,3.71264384]
[1772279983919,4.98326397,1864.7,1864.4,3.71264384]
[1772279984144,0.3634697,1865.6,1864.6,3.60117505]
[1772279984145,4.98283272,1865.3,1864.6,3.60117505]
[1772279984543,0.001,1864.9,1864.6,3.60117505]
[1772279986447,3.64356574,1864.9,1864.5,0.0011]
[1772279988345,3.64356574,1864.9,1864.5,3.60227505]
[1772279988547,4.98413432,1864.9,1864.5,3.60227505]
[1772279988841,3.64356574,1864.9,1864.5,4.94311446]
[1772279989048,0.001,1864.9,1864.6,3.60117505]
[1772279991327,0.001,1864.9,1864.7,3.60117505]
[1772279993638,0.001,1864.9,1864.8,3.60117505]
[1772279996035,0.001,1864.9,1864.7,3.60117505]
[1772279998972,0.001,1864.9,1864.8,3.60117505]
[1772280000041,0.001,1864.9,1864.8,4.94180139]
[1772280000240,4.71850285,1865.5,1864.9,3.60117505]
[1772280000458,6.35356574,1865.4,1864.9,3.60117505]
[1772280000674,4.3908898,1865.3,1864.9,3.60117505]
[1772280001044,4.3908898,1865.3,1864.6,9.19406376]
[1772280001045,4.3908898,1865.1,1864.6,0.0011]
[1772280001263,0.74832406,1864.9,1864.6,1.34186475]
[1772280001566,0.74832406,1864.9,1864.6,4.9430398]
[1772280002176,3.64256574,1865.0,1864.6,4.9430398]
[1772280002401,3.64256574,1865.2,1864.7,3.60117505]
[1772280002691,2.709,1865.1,1864.7,3.60117505]
[1772280003444,0.74932406,1865.5,1864.7,3.60117505]
[1772280003689,0.001,1865.5,1865.1,3.60117505]
[1772280004196,4.3918898,1865.5,1865.1,3.60117505]
[1772280004482,5.73201436,1865.5,1865.1,3.60117505]
[1772280004680,0.001,1865.5,1865.2,3.60117505]
[1772280005184,0.3634697,1865.6,1865.2,3.60117505]
[1772280006075,0.3634697,1865.6,1865.3,4.94144203]
[1772280006282,0.3634697,1865.6,1865.3,3.60117505]
[1772280008066,1.70353143,1865.6,1865.3,3.60117505]
[1772280008472,1.70353143,1865.6,1864.9,5.36200145]
[1772280008473,4.3908898,1865.5,1864.9,3.60117505]
[1772280008650,0.74832406,1865.2,1864.9,3.60117505]
[1772280008856,3.64256574,1865.3,1864.9,3.60117505]
[1772280009057,0.74832406,1865.4,1864.9,3.60117505]
[1772280009258,3.64256574,1865.5,1864.9,3.60117505]
[1772280009447,2.707,1865.4,1864.9,3.60117505]
[1772280010160,2.707,1865.3,1865.0,3.60117505]
[1772280010556,2.706,1865.5,1865.0,3.60117505]
[1772280011261,3.0694697,1865.6,1865.0,3.60117505]
[1772280011958,0.001,1865.3,1865.0,3.60117505]
[1772280012160,0.001,1865.3,1865.2,3.91212001]
[1772280014378,0.001,1865.3,1865.2,5.25245884]
[1772280015862,0.001,1865.3,1865.2,3.91212001]
[1772280016056,0.001,1865.3,1865.2,5.25245884]
[1772280016464,0.001,1865.3,1865.2,3.91212001]
[1772280016781,4.02998978,1865.6,1865.2,3.91212001]
[1772280017115,3.76467021,1866.4,1865.5,3.91212001]
[1772280017993,3.76467021,1866.2,1865.5,3.91212001]
[1772280018201,2.703,1866.3,1865.5,3.91212001]
[1772280018367,1.33962061,1866.2,1865.6,1.34005145]
[1772280018685,1.33962061,1866.2,1865.7,3.91212001]
[1772280018875,4.04260583,1866.3,1865.7,3.91212001]
[1772280019074,5.10418916,1866.4,1865.7,3.91212001]
[1772280019682,1.70401649,1866.5,1865.7,3.91212001]
[1772280020407,1.33954883,1866.3,1865.7,5.25206749]
[1772280020605,2.701,1866.3,1865.8,3.91212001]
[1772280021907,1.33953463,1866.4,1865.8,3.91212001]
[1772280022199,4.03953463,1866.4,1865.8,3.91212001]
[1772280022632,5.72238585,1866.5,1866.0,3.91212001]
[1772280022633,3.0635623,1866.5,1866.0,3.91212001]
[1772280022774,0.3645623,1866.5,1866.0,3.91212001]
[1772280023691,0.065536,1867.0,1866.2,3.91212001]
[1772280023692,0.982,1866.7,1866.2,3.91212001]
[1772280024375,2.697,1866.8,1866.2,3.91212001]
[1772280024978,2.696,1866.9,1866.4,3.91212001]
[1772280025297,6.46067021,1866.9,1866.4,3.91212001]
[1772280025976,2.696,1866.9,1866.4,3.91212001]
[1772280026177,5.10364509,1867.1,1866.4,3.91212001]
[1772280026391,7.79964509,1867.1,1866.4,3.91212001]
[1772280026816,1.33897488,1867.1,1866.4,3.91212001]
[1772280026998,5.356786,1867.2,1866.6,3.91212001]
[1772280027316,2.695,1867.1,1866.6,3.91212001]
[1772280028130,2.695,1867.1,1866.5,1.3394053]
[1772280028131,1.33890317,1867.3,1866.5,1.3394053]
[1772280028336,0.06304582,1867.5,1866.6,3.91212001]
[1772280028337,1.4017532,1867.5,1866.6,3.91212001]
[1772280028897,5.16642341,1867.5,1866.8,3.91212001]
[1772280029415,2.696,1867.4,1866.9,3.91212001]
[1772280029590,0.06304582,1867.5,1866.9,3.91212001]
[1772280029591,3.82771603,1867.5,1866.9,3.91212001]
[1772280029786,0.06304582,1867.5,1866.9,3.91212001]
[1772280029986,0.06304582,1867.5,1867.0,3.91212001]
[1772280030283,3.76467021,1867.4,1866.8,3.91212001]
[1772280030472,1.40176083,1867.5,1866.6,3.91212001]
[1772280030473,3.76467021,1867.2,1866.6,3.91212001]
[1772280030677,3.76467021,1867.2,1866.6,5.25141159]
[1772280031011,3.76467021,1867.2,1866.6,3.91212001]
[1772280031012,5.10364509,1867.1,1866.6,3.91212001]
[1772280031217,3.76467021,1867.0,1866.2,5.25174062]
[1772280033015,3.76467021,1867.0,1866.1,7.84844289]
[1772280033016,5.10377443,1867.0,1866.4,1.33947706]
[1772280033931,5.10377443,1867.0,1866.3,5.25161345]
[1772280034136,2.693,1866.9,1866.3,5.25161345]
[1772280035428,4.03214677,1866.9,1866.3,5.25161345]
[1772280035619,2.693,1866.9,1866.3,5.25161345]
[1772280036226,2.692,1866.8,1866.3,5.25161345]
[1772280036600,2.692,1866.8,1866.4,3.91212001]
[1772280037617,1.33912407,1866.9,1866.4,5.25153106]
[1772280037897,2.69,1866.8,1866.4,5.25153106]
[1772280041031,5.10377168,1867.0,1866.5,3.62858356]
[1772280041236,2.688,1866.9,1866.5,3.62858356]
[1772280041915,6.34061529,1866.9,1866.4,1.33941105]
[1772280042111,3.65261529,1866.8,1866.4,1.33941105]
[1772280042443,3.65261529,1866.6,1866.0,0.0011]
[1772280043302,3.63722742,1866.5,1866.0,0.0011]
[1772280043506,3.63722742,1866.3,1866.0,0.0011]
[1772280044524,4.97678375,1866.3,1866.0,0.0011]
[1772280044726,3.63722742,1866.3,1866.0,0.0011]
[1772280045114,2.687,1866.3,1866.0,3.67556953]
[1772280046543,7.66379454,1866.3,1866.0,0.0011]
[1772280046757,6.32422742,1866.3,1866.0,0.0011]
[1772280047745,2.686,1866.3,1866.0,3.67556953]
[1772280048464,4.97649653,1866.7,1866.0,3.67556953]
[1772280048639,2.686,1866.6,1866.1,5.01416193]
[1772280048840,6.32322742,1866.6,1866.0,1.34081593]